[Event "82nd Tata Steel Qualifiers 2020"]
[Site "Wijk aan Zee"]
[Date "2020.01.18"]
[Round "2.4"]
[White "De Boer, Eelke"]
[Black "Beukema, Stefan"]
[Result "1-0"]
[ECO "C84"]
[WhiteElo "2324"]
[BlackElo "2389"]
[Annotator "ChessBase"]
[PlyCount "87"]
[EventDate "2020.01.18"]
[EventCountry "NED"]
[SourceTitle "playchess.com"]
[Source "ChessBase"]
[SourceQuality "1"]
[TimeControl "40/6000+30:20/3000+30:900+30"]

1. e4 {[%emt 0:00:00]} e5 {[%emt 0:00:20]} 2. Nf3 {[%emt 0:00:00]} Nc6 {[%emt 0:00:04]} 3. Bb5 {[%emt 0:00:00]} a6 {[%emt 0:04:11]} 4. Ba4 {[%emt 0:00:00]} Nf6 {[%emt 0:00:19]} 5. O-O {[%emt 0:00:08]} Be7 {[%emt 0:00:08]} 6. d3 {[%emt 0:00:07]} b5 {[%emt 0:00:21]} 7. Bb3 {[%emt 0:00:06]} d6 {[%emt 0:00:14]} 8. a3 {[%emt 0:01:41]} Be6 {[%emt 0:01:10]} 9. Bxe6 {[%emt 0:00:00]} fxe6 {[%emt 0:00:17]} 10. c3 {[%emt 0:00:13]} O-O {[%emt 0:01:13]} 11. Re1 {[%emt 0:01:47]} Nd7 {[%emt 0:03:28]} 12. d4 {[%emt 0:15:17]} Bf6 {[%emt 0:00:38]} 13. a4 {[%emt 0:06:45]} exd4 {[%emt 0:09:45]} 14. cxd4 {[%emt 0:00:16]} b4 {[%emt 0:07:10]} 15. Be3 {[%emt 0:02:03]} Na5 {[%emt 0:00:00]} 16. Nbd2 {[%emt 0:06:48]} d5 {[%emt 0:15:03]} 17. e5 {[%emt 0:11:11]} Be7 {[%emt 0:00:00]} 18. Rc1 {[%emt 0:00:22]} c5 {[%emt 0:00:00]} 19. dxc5 {[%emt 0:00:45]} Rc8 {[%emt 0:00:00]} 20. Nd4 {[%emt 0:07:25]} Nxc5 {[%emt 0:00:00]} 21. Rxc5 {[%emt 0:00:55]} Bxc5 {[%emt 0:00:00]} 22. Nxe6 {[%emt 0:02:30]} Bxe3 {[%emt 0:00:00]} 23. Rxe3 {[%emt 0:00:19]} d4 {[%emt 0:00:00]} 24. Rd3 {[%emt 0:12:26]} Qd5 {[%emt 0:00:00]} 25. Nxf8 {[%emt 0:00:13]} Kxf8 {[%emt 0:00:00]} 26. h3 {[%emt 0:08:37]} Nc6 {[%emt 0:03:19]} 27. f4 {[%emt 0:10:46]} Qa2 {[%emt 0:08:01]} 28. Qb3 {[%emt 0:09:41]} Qa1+ {[%emt 0:02:04]} 29. Kf2 {[%emt 0:02:36]} Qc1 {[%emt 0:00:00]} 30. Nf1 {[%emt 0:05:26]} Ke7 {[%emt 0:01:27]} 31. g3 {[%emt 0:02:45]} Rf8 32. Rd2 {[%emt 0:01:53]} g5 {[%emt 0:05:57]} 33. Rc2 {[%emt 0:00:30]} Qd1 {[%emt 0:00:30]} 34. Qc4 {[%emt 0:07:30]} gxf4 {[%emt 0:07:12]} 35. Qc5+ {[%emt 0:00:00]} Kf7 {[%emt 0:00:04]} 36. Qxc6 {[%emt 0:00:00]} fxg3+ {[%emt 0:00:05]} 37. Kxg3 {[%emt 0:00:00]} Kg7 {[%emt 0:01:37]} 38. Rf2 {[%emt 0:00:00]} Qe1 {[%emt 0:01:42]} 39. Qd7+ {[%emt 0:00:00]} Kg8 {[%emt 0:01:08]} 40. Qxd4 {[%emt 0:00:00]} Rxf2 {[%emt 0:00:05]} 41. Qxf2 {[%emt 0:47:04]} Qxe5+ {[%emt 0:50:04]} 42. Kg2 {[%emt 0:00:20]} Qd5+ {[%emt 0:00:15]} 43. Qf3 {[%emt 0:01:07]} Qd4 {[%emt 0:00:17]} 44. Qg4+ {[%emt 0:00:10]} 1-0

[Event "82nd Tata Steel Qualifiers 2020"]
[Site "Wijk aan Zee"]
[Date "2020.01.19"]
[Round "3.2"]
[White "Pijpers, Arthur"]
[Black "De Boer, Eelke"]
[Result "1-0"]
[ECO "B94"]
[WhiteElo "2480"]
[BlackElo "2324"]
[Annotator "ChessBase"]
[PlyCount "73"]
[EventDate "2020.01.18"]
[EventCountry "NED"]
[SourceTitle "playchess.com"]
[Source "ChessBase"]
[SourceQuality "1"]
[TimeControl "40/6000+30:20/3000+30:900+30"]

1. e4 {[%emt 0:00:00]} c5 {[%emt 0:00:00]} 2. Nf3 {[%emt 0:00:00]} d6 {[%emt 0:00:00]} 3. d4 {[%emt 0:00:00]} cxd4 {[%emt 0:00:00]} 4. Nxd4 {[%emt 0:00:00]} Nf6 {[%emt 0:00:08]} 5. Nc3 {[%emt 0:00:00]} a6 {[%emt 0:00:09]} 6. Bg5 {[%emt 0:00:00]} Nbd7 {[%emt 0:00:07]} 7. f4 {[%emt 0:00:00]} Qa5 {[%emt 0:00:11]} 8. Qd3 {[%emt 0:00:00]} h6 {[%emt 0:07:56]} 9. Bxf6 {[%emt 0:00:04]} Nxf6 {[%emt 0:00:11]} 10. f5 {[%emt 0:00:03]} b5 {[%emt 0:17:35]} 11. O-O-O {[%emt 0:14:09]} b4 {[%emt 0:07:02]} 12. Qc4 {[%emt 0:28:36]} Bb7 {[%emt 0:09:41]} 13. Nc6 {[%emt 0:02:26]} Qc5 {[%emt 0:00:14]} 14. Qxc5 {[%emt 0:10:42]} dxc5 {[%emt 0:00:06]} 15. Nb5 {[%emt 0:00:04]} axb5 {[%emt 0:13:20]} 16. Bxb5 {[%emt 0:00:10]} e5 {[%emt 0:00:36]} 17. Na5+ {[%emt 0:04:38]} Ke7 {[%emt 0:00:16]} 18. Nxb7 {[%emt 0:00:05]} g5 {[%emt 0:05:43]} 19. Nxc5 {[%emt 0:30:01]} Bg7 {[%emt 0:07:45]} 20. Na6 {[%emt 0:02:18]} Nxe4 {[%emt 0:03:49]} 21. Nxb4 {[%emt 0:00:58]} Rhc8 {[%emt 0:16:14]} 22. Nd5+ {[%emt 0:02:32]} Kf8 {[%emt 0:00:25]} 23. Nb6 {[%emt 0:00:07]} Nf2 {[%emt 0:02:53]} 24. a4 {[%emt 0:01:50]} Nxh1 {[%emt 0:02:36]} 25. Rxh1 {[%emt 0:00:07]} Ke7 {[%emt 0:01:25]} 26. Rd1 {[%emt 0:01:00]} Rcb8 {[%emt 0:00:58]} 27. Rd7+ {[%emt 0:02:20]} Kf6 {[%emt 0:00:13]} 28. Nxa8 {[%emt 0:00:14]} Rxa8 {[%emt 0:00:06]} 29. g4 {[%emt 0:01:45]} Bf8 {[%emt 0:00:50]} 30. Kd2 {[%emt 0:00:48]} h5 {[%emt 0:00:51]} 31. h3 {[%emt 0:01:11]} hxg4 {[%emt 0:00:53]} 32. hxg4 {[%emt 0:00:04]} e4 {[%emt 0:00:10]} 33. Rd5 {[%emt 0:04:20]} Bb4+ {[%emt 0:02:23]} 34. c3 {[%emt 0:01:00]} Ba5 {[%emt 0:00:05]} 35. Ke3 {[%emt 0:00:17]} Rd8 {[%emt 0:00:52]} 36. Rxd8 {[%emt 0:00:14]} Bxd8 {[%emt 0:00:06]} 37. Kxe4 {[%emt 0:00:03]} 1-0

[Event "82nd Tata Steel Qualifiers 2020"]
[Site "Wijk aan Zee"]
[Date "2020.01.19"]
[Round "3.3"]
[White "Beukema, Stefan"]
[Black "Slingerland, Fred"]
[Result "1-0"]
[ECO "D00"]
[WhiteElo "2389"]
[BlackElo "2333"]
[Annotator "RC"]
[PlyCount "57"]
[EventDate "2020.01.18"]
[EventCountry "NED"]
[SourceTitle "playchess.com"]
[Source "ChessBase"]
[SourceQuality "1"]
[TimeControl "40/6000+30:20/3000+30:900+30"]

1. d4 {[%emt 0:00:00]} d5 {[%emt 0:00:00]} 2. Bf4 {[%emt 0:00:00]} Nf6 {[%emt 0:00:00]} 3. e3 {[%emt 0:00:00]} c5 {[%emt 0:00:04]} 4. Nc3 {[%emt 0:00:00]} a6 {[%emt 0:04:14]} 5. dxc5 {[%emt 0:00:17]} Nc6 {[%emt 0:00:30]} 6. a3 {[%emt 0:13:50]} e5 {[%emt 0:06:41]} 7. Bg5 {[%emt 0:00:08]} d4 {[%emt 0:07:11]} 8. exd4 {[%emt 0:05:08]} Nxd4 {[%emt 0:09:03]} 9. Ne4 {[%emt 0:04:56]} Bf5 {[%emt 0:08:00]} 10. Bd3 {[%emt 0:00:18]} Be7 {[%emt 0:01:22]} 11. Bxf6 {[%emt 0:01:04]} gxf6 {[%emt 0:00:21]} 12. c3 {[%emt 0:15:23]} Qd5 {[%emt 0:19:58]} 13. f3 {[%emt 0:04:30]} Nc6 {[%emt 0:02:19]} 14. b4 {[%emt 0:05:43]} Be6 {[%emt 0:06:29]} 15. Qc2 {[%emt 0:02:01]} a5 {[%emt 0:06:11]} 16. Rd1 {[%emt 0:06:53]} axb4 {[%emt 0:04:40]} 17. axb4 {[%emt 0:00:12]} Qd7 {[%emt 0:10:00]} 18. Ne2 {[%emt 0:02:19]} f5 {[%emt 0:04:13]} 19. N4g3 {[%emt 0:00:17]} f4 {[%emt 0:01:40]} 20. Nf5 {[%emt 0:01:35]} Rg8 {[%emt 0:01:29]} 21. O-O {[%emt 0:00:09]} Ra2 {[%emt 0:02:40]} 22. Qb1 {[%emt 0:00:10]} Qc8 {[%emt 0:02:26]} 23. Rf2 {[%emt 0:01:43]} Qa8 {[%emt 0:02:06]} 24. Bb5 {[%emt 0:04:37]} Qa3 {[%emt 0:02:44]} 25. Qd3 {[%emt 0:03:51]} Qb2 {[%emt 0:02:53]} 26. Nd6+ {[%emt 0:03:01]} Kf8 {[%emt 0:00:47]} 27. Qxh7 {[%emt 0:01:36]} Qb3 {[%emt 0:02:09]} 28. Rb1 {[%emt 0:01:46]} Qd5 {[%emt 0:02:19]} 29. Bc4 {[%emt 0:00:18]} 1-0

[Event "82nd Tata Steel Qualifiers 2020"]
[Site "Wijk aan Zee"]
[Date "2020.01.19"]
[Round "4.1"]
[White "Zwirs, Nico"]
[Black "Suleymanli, Aydin"]
[Result "1/2-1/2"]
[ECO "C18"]
[WhiteElo "2418"]
[BlackElo "2473"]
[Annotator "RC"]
[PlyCount "103"]
[EventDate "2020.01.18"]
[EventCountry "NED"]
[SourceTitle "playchess.com"]
[Source "ChessBase"]
[SourceQuality "1"]
[TimeControl "40/6000+30:20/3000+30:900+30"]

1. e4 {[%emt 0:00:00]} e6 {[%emt 0:00:00]} 2. d4 {[%emt 0:00:00]} d5 {[%emt 0:00:00]} 3. Nc3 {[%emt 0:00:20]} Bb4 {[%emt 0:00:00]} 4. e5 {[%emt 0:00:16]} c5 {[%emt 0:00:00]} 5. a3 {[%emt 0:00:17]} Bxc3+ {[%emt 0:00:00]} 6. bxc3 {[%emt 0:00:04]} Qa5 {[%emt 0:00:00]} 7. Bd2 {[%emt 0:01:35]} Qa4 {[%emt 0:00:08]} 8. Qb1 {[%emt 0:03:52]} c4 {[%emt 0:00:12]} 9. Nh3 {[%emt 0:00:07]} Nc6 {[%emt 0:04:33]} 10. Nf4 {[%emt 0:00:11]} Nge7 {[%emt 0:01:56]} 11. Nh5 {[%emt 0:01:43]} Rg8 {[%emt 0:00:17]} 12. g3 {[%emt 0:00:38]} Bd7 {[%emt 0:02:49]} 13. Bh3 {[%emt 0:01:56]} O-O-O {[%emt 0:00:49]} 14. O-O {[%emt 0:00:41]} Rdf8 {[%emt 0:02:25]} 15. Re1 {[%emt 0:00:52]} Kb8 {[%emt 0:25:43]} 16. Qb2 {[%emt 0:03:39]} Ka8 {[%emt 0:01:00]} 17. Rab1 {[%emt 0:02:01]} b6 {[%emt 0:01:54]} 18. Re2 {[%emt 0:03:15]} Ng6 {[%emt 0:27:39]} 19. Kh1 {[%emt 0:04:47]} Nd8 {[%emt 0:02:12]} 20. Rbe1 {[%emt 0:12:59]} f6 {[%emt 0:04:57]} 21. exf6 {[%emt 0:01:31]} gxf6 {[%emt 0:00:02]} 22. Nf4 {[%emt 0:34:37]} e5 {[%emt 0:03:06]} 23. Nxg6 {[%emt 0:07:16]} hxg6 {[%emt 0:00:34]} 24. Bg2 {[%emt 0:00:32]} e4 {[%emt 0:00:57]} 25. Qb4 {[%emt 0:04:39]} Qa6 {[%emt 0:06:53]} 26. f3 {[%emt 0:01:21]} f5 {[%emt 0:01:02]} 27. Rf1 {[%emt 0:05:15]} Re8 {[%emt 0:00:48]} 28. Be3 {[%emt 0:02:54]} Be6 {[%emt 0:03:34]} 29. f4 {[%emt 0:04:43]} Nc6 {[%emt 0:01:33]} 30. Qb2 {[%emt 0:00:08]} b5 {[%emt 0:05:48]} 31. Rb1 {[%emt 0:00:35]} Rb8 {[%emt 0:00:07]} 32. Ree1 {[%emt 0:00:16]} Rg7 {[%emt 0:00:15]} 33. Kg1 {[%emt 0:02:19]} Qc8 {[%emt 0:00:51]} 34. h4 {[%emt 0:01:15]} a5 {[%emt 0:00:36]} 35. Bf1 {[%emt 0:00:30]} Ra7 {[%emt 0:02:17]} 36. Ra1 {[%emt 0:01:24]} Rbb7 {[%emt 0:01:20]} 37. Kf2 {[%emt 0:01:57]} Qf8 {[%emt 0:00:13]} 38. Reb1 {[%emt 0:01:41]} Kb8 {[%emt 0:02:07]} 39. Be2 {[%emt 0:01:05]} Kc8 {[%emt 0:04:11]} 40. Kg2 {[%emt 0:02:20]} Rb8 {[%emt 0:01:43]} 41. Qc1 {[%emt 0:17:32]} Rab7 {[%emt 0:11:20]} 42. Bd1 {[%emt 0:04:15]} b4 {[%emt 0:04:00]} 43. axb4 {[%emt 0:00:28]} axb4 {[%emt 0:00:06]} 44. cxb4 {[%emt 0:01:45]} Rxb4 {[%emt 0:01:24]} 45. Qa3 {[%emt 0:03:44]} Kc7 {[%emt 0:00:09]} 46. Rxb4 {[%emt 0:02:54]} Qxb4 {[%emt 0:04:05]} 47. Qxb4 {[%emt 0:01:49]} Rxb4 {[%emt 0:00:28]} 48. c3 {[%emt 0:03:57]} Rb5 {[%emt 0:13:06]} 49. Kh3 {[%emt 0:06:32]} Rb2 {[%emt 0:03:32]} 50. Bc1 {[%emt 0:00:16]} Rf2 {[%emt 0:00:44]} 51. Be3 {[%emt 0:00:22]} Rb2 {[%emt 0:00:08]} 52. Bc1 {[%emt 0:00:06]} 1/2-1/2

[Event "82nd Tata Steel Qualifiers 2020"]
[Site "Wijk aan Zee"]
[Date "2020.01.20"]
[Round "4.4"]
[White "Suleymanli, Aydin"]
[Black "Beerdsen, Thomas"]
[Result "*"]
[ECO "B56"]
[WhiteElo "2473"]
[BlackElo "2495"]
[Annotator "RC"]
[PlyCount "31"]
[EventDate "2020.01.18"]
[EventCountry "NED"]
[SourceTitle "playchess.com"]
[Source "ChessBase"]
[SourceQuality "1"]
[TimeControl "40/6000+30:20/3000+30:900+30"]

1. e4 {[%emt 0:01:11]} c5 {[%emt 0:00:00]} 2. Nf3 {[%emt 0:00:05]} d6 {[%emt 0:00:00]} 3. d4 {[%emt 0:00:04]} cxd4 {[%emt 0:00:05]} 4. Nxd4 {[%emt 0:00:07]} Nf6 {[%emt 0:00:07]} 5. Nc3 {[%emt 0:00:04]} Bd7 {[%emt 0:00:00]} 6. h3 {[%emt 0:04:09]} Nc6 {[%emt 0:00:25]} 7. g4 {[%emt 0:01:00]} g6 {[%emt 0:00:10]} 8. Be3 {[%emt 0:07:00]} Bg7 {[%emt 0:00:17]} 9. Qd2 {[%emt 0:02:57]} O-O {[%emt 0:00:17]} 10. O-O-O {[%emt 0:02:14]} b5 {[%emt 0:00:25]} 11. Nxc6 {[%emt 0:07:13]} Bxc6 {[%emt 0:00:17]} 12. Bg2 {[%emt 0:00:04]} Qa5 {[%emt 0:35:53]} 13. Kb1 {[%emt 0:05:17]} b4 {[%emt 0:00:19]} 14. Nd5 {[%emt 0:00:32]} Nxd5 {[%emt 0:02:22]} 15. exd5 {[%emt 0:00:10]} Bc3 {[%emt 0:00:32]} 16. Qc1 {[%emt 0:01:49]} *

[Event "82nd Tata Steel Qualifiers 2020"]
[Site "Wijk aan Zee"]
[Date "2020.01.20"]
[Round "4.4"]
[White "De Boer, Eelke"]
[Black "Zwirs, Nico"]
[Result "0-1"]
[ECO "B56"]
[WhiteElo "2324"]
[BlackElo "2418"]
[Annotator "ChessBase"]
[PlyCount "114"]
[EventDate "2020.01.18"]
[EventCountry "NED"]
[SourceTitle "playchess.com"]
[Source "ChessBase"]
[SourceQuality "1"]
[TimeControl "40/6000+30:20/3000+30:900+30"]

1. e4 {[%emt 0:01:11]} c5 {[%emt 0:00:00]} 2. Nf3 {[%emt 0:00:05]} d6 {[%emt 0:00:00]} 3. d4 {[%emt 0:00:04]} cxd4 {[%emt 0:00:00]} 4. Nxd4 {[%emt 0:00:07]} Nf6 {[%emt 0:00:00]} 5. Nc3 {[%emt 0:00:04]} Bd7 {[%emt 0:00:00]} 6. h3 {[%emt 0:04:09]} Nc6 {[%emt 0:00:25]} 7. g4 {[%emt 0:01:00]} g6 {[%emt 0:00:10]} 8. Be3 {[%emt 0:07:00]} Bg7 {[%emt 0:00:17]} 9. Qd2 {[%emt 0:02:57]} O-O {[%emt 0:00:17]} 10. O-O-O {[%emt 0:02:14]} b5 {[%emt 0:00:25]} 11. Nxc6 {[%emt 0:07:13]} Bxc6 {[%emt 0:00:17]} 12. Bg2 {[%emt 0:00:04]} Qa5 {[%emt 0:35:53]} 13. Kb1 {[%emt 0:05:17]} b4 {[%emt 0:00:19]} 14. Nd5 {[%emt 0:00:32]} Nxd5 {[%emt 0:02:22]} 15. exd5 {[%emt 0:00:10]} Bc3 {[%emt 0:00:32]} 16. Qc1 {[%emt 0:01:49]} Bb5 {[%emt 0:00:33]} 17. Bd2 {[%emt 0:16:23]} Rfc8 {[%emt 0:09:08]} 18. Bxc3 {[%emt 0:01:50]} bxc3 {[%emt 0:00:17]} 19. b3 {[%emt 0:00:08]} Rab8 {[%emt 0:12:41]} 20. Rd4 {[%emt 0:15:35]} Rb6 {[%emt 0:07:01]} 21. a3 {[%emt 0:04:34]} Ra6 {[%emt 0:19:27]} 22. Ka2 {[%emt 0:00:21]} Qb6 {[%emt 0:00:12]} 23. Rf4 {[%emt 0:05:20]} Bd7 {[%emt 0:01:51]} 24. Bf1 {[%emt 0:10:44]} Ra5 {[%emt 0:03:51]} 25. Bc4 {[%emt 0:00:53]} Bb5 {[%emt 0:01:16]} 26. Bxb5 {[%emt 0:00:06]} Rxb5 {[%emt 0:00:08]} 27. Re1 {[%emt 0:00:15]} Rc7 {[%emt 0:06:31]} 28. Qd1 {[%emt 0:04:59]} Qb7 {[%emt 0:00:19]} 29. Rd4 {[%emt 0:00:21]} Rcc5 {[%emt 0:00:54]} 30. Qd3 {[%emt 0:02:06]} Rxd5 {[%emt 0:02:03]} 31. Rxd5 {[%emt 0:04:16]} Rxd5 {[%emt 0:03:48]} 32. Qxc3 {[%emt 0:00:07]} Rc5 {[%emt 0:00:54]} 33. Qd3 {[%emt 0:00:12]} Qg2 {[%emt 0:02:46]} 34. Re2 {[%emt 0:02:54]} Rd5 {[%emt 0:00:46]} 35. Qe4 {[%emt 0:02:47]} Qxe4 {[%emt 0:00:04]} 36. Rxe4 {[%emt 0:00:06]} e5 {[%emt 0:00:24]} 37. Re2 {[%emt 0:05:08]} f5 {[%emt 0:00:53]} 38. b4 {[%emt 0:00:42]} Kf7 {[%emt 0:00:15]} 39. gxf5 {[%emt 0:01:06]} gxf5 {[%emt 0:00:01]} 40. Kb3 {[%emt 0:01:01]} Ke6 {[%emt 0:00:26]} 41. a4 {[%emt 0:52:51]} Rd1 {[%emt 0:51:48]} 42. Kc4 {[%emt 0:00:00]} d5+ {[%emt 0:00:00]} 43. Kc5 {[%emt 0:00:00]} d4 {[%emt 0:00:00]} 44. a5 {[%emt 0:00:00]} e4 {[%emt 0:00:00]} 45. b5 {[%emt 0:00:00]} Ke5 {[%emt 0:00:00]} 46. Kc4 {[%emt 0:00:00]} f4 {[%emt 0:00:00]} 47. f3 {[%emt 0:02:24]} e3 {[%emt 0:00:00]} 48. b6 {[%emt 0:00:10]} axb6 {[%emt 0:00:00]} 49. axb6 {[%emt 0:00:06]} Kd6 {[%emt 0:00:00]} 50. c3 {[%emt 0:01:42]} dxc3 {[%emt 0:00:00]} 51. Kxc3 {[%emt 0:00:09]} Rb1 {[%emt 0:03:34]} 52. Ra2 {[%emt 0:01:26]} Rxb6 {[%emt 0:00:39]} 53. Ra4 {[%emt 0:00:09]} Ke5 {[%emt 0:00:18]} 54. Ra5+ {[%emt 0:00:15]} Kf6 {[%emt 0:00:09]} 55. Kd3 {[%emt 0:00:14]} Rb3+ {[%emt 0:00:24]} 56. Ke2 {[%emt 0:01:00]} Rb2+ {[%emt 0:00:06]} 57. Ke1 {[%emt 0:00:05]} Rf2 {[%emt 0:00:20]} 0-1

[Event "82nd Tata Steel Qualifiers 2020"]
[Site "Wijk aan Zee"]
[Date "2020.01.22"]
[Round "6.1"]
[White "Pijpers, Arthur"]
[Black "Zwirs, Nico"]
[Result "0-1"]
[ECO "B24"]
[WhiteElo "2480"]
[BlackElo "2418"]
[Annotator "ChessBase"]
[PlyCount "84"]
[EventDate "2020.01.18"]
[EventCountry "NED"]
[SourceTitle "playchess.com"]
[Source "ChessBase"]
[SourceQuality "1"]
[TimeControl "40/6000+30:20/3000+30:900+30"]

1. e4 {[%emt 0:00:00]} c5 {[%emt 0:00:00]} 2. Nc3 {[%emt 0:00:00]} d6 {[%emt 0:00:00]} 3. Nge2 {[%emt 0:00:40]} Nf6 {[%emt 0:00:54]} 4. g3 {[%emt 0:00:12]} e5 {[%emt 0:04:10]} 5. Bg2 {[%emt 0:01:39]} Nc6 {[%emt 0:03:45]} 6. O-O {[%emt 0:03:47]} Be7 {[%emt 0:05:52]} 7. d3 {[%emt 0:02:23]} O-O {[%emt 0:02:24]} 8. f4 {[%emt 0:01:52]} Rb8 {[%emt 0:09:17]} 9. a4 {[%emt 0:21:35]} a6 {[%emt 0:02:30]} 10. f5 {[%emt 0:11:26]} b5 {[%emt 0:06:18]} 11. axb5 {[%emt 0:00:07]} axb5 {[%emt 0:00:05]} 12. Bg5 {[%emt 0:01:32]} Ng4 {[%emt 0:06:21]} 13. Bd2 {[%emt 0:00:07]} Nf6 {[%emt 0:13:17]} 14. g4 {[%emt 0:10:10]} Nxg4 {[%emt 0:09:47]} 15. Ng3 {[%emt 0:00:16]} Nf6 {[%emt 0:00:42]} 16. Nd5 {[%emt 0:01:07]} Nxd5 {[%emt 0:12:59]} 17. exd5 {[%emt 0:00:05]} Nb4 {[%emt 0:00:07]} 18. Nh5 {[%emt 0:01:52]} f6 {[%emt 0:00:35]} 19. Be4 {[%emt 0:08:51]} Rf7 {[%emt 0:00:54]} 20. Kh1 {[%emt 0:02:36]} Bf8 {[%emt 0:04:31]} 21. c3 {[%emt 0:07:21]} Na6 {[%emt 0:00:10]} 22. Rf3 {[%emt 0:03:32]} c4 {[%emt 0:02:28]} 23. d4 {[%emt 0:04:46]} Nc7 {[%emt 0:06:30]} 24. Rh3 {[%emt 0:02:17]} Ra8 {[%emt 0:05:40]} 25. Rb1 {[%emt 0:00:05]} Bb7 {[%emt 0:01:28]} 26. Qf3 {[%emt 0:01:01]} Ra7 {[%emt 0:03:36]} 27. Rg1 {[%emt 0:13:22]} Qa8 {[%emt 0:00:08]} 28. Nf4 {[%emt 0:01:57]} exf4 {[%emt 0:03:34]} 29. Qh5 {[%emt 0:00:04]} Rd7 {[%emt 0:00:46]} 30. Qxh7+ {[%emt 0:00:59]} Kf7 {[%emt 0:00:00]} 31. Qg6+ {[%emt 0:00:22]} Ke7 {[%emt 0:00:09]} 32. Re1 {[%emt 0:00:15]} Ra1 {[%emt 0:02:15]} 33. Bb1+ {[%emt 0:00:29]} Kd8 {[%emt 0:00:04]} 34. Rh8 {[%emt 0:00:08]} Bxd5+ {[%emt 0:00:09]} 35. Kg1 {[%emt 0:00:04]} Rf7 {[%emt 0:00:13]} 36. Bxf4 {[%emt 0:00:46]} Kd7 {[%emt 0:01:22]} 37. Qg3 {[%emt 0:05:54]} Qc6 {[%emt 0:00:19]} 38. Bc2 {[%emt 0:01:59]} Rxe1+ {[%emt 0:00:38]} 39. Qxe1 {[%emt 0:00:01]} Re7 {[%emt 0:01:19]} 40. Qg3 {[%emt 0:00:37]} Re2 {[%emt 0:03:03]} 41. Kf1 {[%emt 0:51:11]} Re8 {[%emt 0:17:35]} 42. Bd1 {[%emt 0:00:00]} Qa6 {[%emt 0:01:53]} 0-1

[Event "82nd Tata Steel Qualifiers 2020"]
[Site "Wijk aan Zee"]
[Date "2020.01.22"]
[Round "6.4"]
[White "Suleymanli, Aydin"]
[Black "Akash G"]
[Result "0-1"]
[ECO "E47"]
[WhiteElo "2473"]
[BlackElo "2461"]
[Annotator "ChessBase"]
[PlyCount "90"]
[EventDate "2020.01.18"]
[EventCountry "NED"]
[SourceTitle "playchess.com"]
[Source "ChessBase"]
[SourceQuality "1"]
[TimeControl "40/6000+30:20/3000+30:900+30"]

1. d4 {[%emt 0:00:00]} Nf6 {[%emt 0:03:10]} 2. c4 {[%emt 0:00:00]} e6 {[%emt 0:00:06]} 3. Nc3 {[%emt 0:00:00]} Bb4 {[%emt 0:00:12]} 4. e3 {[%emt 0:00:00]} O-O {[%emt 0:00:21]} 5. Bd3 {[%emt 0:00:25]} c5 {[%emt 0:01:08]} 6. Nge2 {[%emt 0:01:20]} cxd4 {[%emt 0:06:50]} 7. exd4 {[%emt 0:00:18]} d5 {[%emt 0:00:09]} 8. c5 {[%emt 0:02:36]} b6 {[%emt 0:04:27]} 9. a3 {[%emt 0:01:19]} Bxc3+ {[%emt 0:00:06]} 10. Nxc3 {[%emt 0:00:04]} Nc6 {[%emt 0:07:37]} 11. Bb5 {[%emt 0:22:09]} Bb7 {[%emt 0:01:19]} 12. b4 {[%emt 0:01:41]} Ne4 {[%emt 0:17:45]} 13. Ne2 {[%emt 0:11:17]} bxc5 {[%emt 0:05:24]} 14. dxc5 {[%emt 0:11:26]} Qf6 {[%emt 0:08:01]} 15. Be3 {[%emt 0:00:29]} e5 {[%emt 0:06:00]} 16. Bd3 {[%emt 0:08:05]} Ne7 {[%emt 0:05:48]} 17. Bxe4 {[%emt 0:06:47]} dxe4 {[%emt 0:00:07]} 18. b5 {[%emt 0:00:09]} Bd5 {[%emt 0:03:26]} 19. Qc1 {[%emt 0:10:22]} Qe6 {[%emt 0:02:40]} 20. O-O {[%emt 0:02:38]} Bc4 {[%emt 0:03:16]} 21. Qb2 {[%emt 0:00:09]} f5 {[%emt 0:01:13]} 22. c6 {[%emt 0:04:38]} Rab8 {[%emt 0:09:49]} 23. a4 {[%emt 0:01:35]} Nxc6 {[%emt 0:00:34]} 24. Rfc1 {[%emt 0:00:28]} Na5 {[%emt 0:04:26]} 25. Bxa7 {[%emt 0:01:01]} Ra8 {[%emt 0:02:28]} 26. b6 {[%emt 0:02:53]} f4 {[%emt 0:04:54]} 27. Ra3 {[%emt 0:06:19]} e3 {[%emt 0:02:01]} 28. fxe3 {[%emt 0:00:51]} f3 {[%emt 0:01:14]} 29. gxf3 {[%emt 0:00:16]} Rxf3 {[%emt 0:00:08]} 30. Ng3 {[%emt 0:00:06]} Ba6 {[%emt 0:01:19]} 31. Qb4 {[%emt 0:05:26]} Qh3 {[%emt 0:04:18]} 32. Qd2 {[%emt 0:08:07]} Bb7 {[%emt 0:01:17]} 33. Qa2+ {[%emt 0:00:45]} Kh8 {[%emt 0:00:21]} 34. e4 {[%emt 0:00:13]} Rxa3 {[%emt 0:01:31]} 35. Qxa3 {[%emt 0:00:03]} Bxe4 {[%emt 0:00:12]} 36. Qa2 {[%emt 0:00:30]} Bb7 {[%emt 0:01:23]} 37. Qe2 {[%emt 0:01:48]} Nb3 {[%emt 0:00:53]} 38. Qf1 {[%emt 0:01:24]} Qh6 {[%emt 0:01:38]} 39. Rc7 {[%emt 0:01:18]} Nd2 {[%emt 0:00:28]} 40. Qf5 {[%emt 0:00:30]} Nf3+ {[%emt 0:01:28]} 41. Kf1 {[%emt 0:50:00]} Qxh2 {[%emt 0:18:00]} 42. Ne2 {[%emt 0:00:00]} Qh1+ {[%emt 0:05:55]} 43. Kf2 {[%emt 0:00:00]} Qe1+ {[%emt 0:00:23]} 44. Ke3 {[%emt 0:00:00]} Qd2+ {[%emt 0:00:04]} 45. Kf2 {[%emt 0:00:00]} Nd4 {[%emt 0:00:20]} 0-1

[Event "82nd Tata Steel Qualifiers 2020"]
[Site "Wijk aan Zee"]
[Date "2020.01.22"]
[Round "6.5"]
[White "Slingerland, Fred"]
[Black "Van Dael, Siem"]
[Result "1/2-1/2"]
[ECO "B76"]
[WhiteElo "2333"]
[BlackElo "2252"]
[Annotator "RC"]
[PlyCount "39"]
[EventDate "2020.01.18"]
[EventCountry "NED"]
[SourceTitle "playchess.com"]
[Source "ChessBase"]
[SourceQuality "1"]
[TimeControl "40/6000+30:20/3000+30:900+30"]

1. e4 {[%emt 0:00:00]} c5 {[%emt 0:00:00]} 2. Nf3 {[%emt 0:00:00]} d6 {[%emt 0:00:00]} 3. d4 {[%emt 0:00:00]} cxd4 {[%emt 0:00:00]} 4. Nxd4 {[%emt 0:00:00]} Nf6 {[%emt 0:00:00]} 5. Nc3 {[%emt 0:00:00]} g6 {[%emt 0:00:00]} 6. Be3 {[%emt 0:00:09]} Bg7 {[%emt 0:00:02]} 7. f3 {[%emt 0:00:07]} O-O {[%emt 0:00:05]} 8. Qd2 {[%emt 0:00:09]} Nc6 {[%emt 0:00:04]} 9. O-O-O {[%emt 0:00:15]} d5 {[%emt 0:00:07]} 10. Kb1 {[%emt 0:00:18]} Nxd4 {[%emt 0:00:06]} 11. e5 {[%emt 0:00:23]} Nf5 {[%emt 0:00:06]} 12. exf6 {[%emt 0:00:09]} exf6 {[%emt 0:00:06]} 13. Nxd5 {[%emt 0:03:02]} Nxe3 {[%emt 0:00:09]} 14. Qxe3 {[%emt 0:00:12]} Be6 {[%emt 0:00:07]} 15. Bc4 {[%emt 0:00:23]} f5 {[%emt 0:00:13]} 16. c3 {[%emt 0:02:52]} Re8 {[%emt 0:00:04]} 17. Qd3 {[%emt 0:09:23]} a6 {[%emt 0:06:56]} 18. Nf4 {[%emt 0:05:17]} Qxd3+ {[%emt 0:08:01]} 19. Bxd3 {[%emt 0:01:28]} Rad8 {[%emt 0:00:34]} 20. Nxe6 {[%emt 0:02:02]} 1/2-1/2